Workbook

Sheet DATOS (hidden)
A1: 1 | B1: abandonar | C1: abandonar
A2: =A1+1 -> 2 | B2: ahora ves más que no veías | C2: ara hi veieu més que no hi vèieu | D2: agut tancada
A3: =A2+1 -> 3 | B3: anteayer | C3: abans-d'ahir
A4: 4 | B4: aplaudir | C4: aplaudí
A5: 5 | B5: bajaron la pared más de medio metro | C5: van abaixar la paret més de mig metre | D5: agut tancada
A6: 6 | B6: cabe recordar | C6: cal recordar
A7: 7 | B7: científicamente correcta se cumple | C7: científicament correcta es compleix
A8: 8 | B8: comprabais (de comprar) | C8: compràveu
A9: 9 | B9: con la consecuencia que hay personas | C9: amb la conseqüència que hi ha persones | D9: greu oberta
A10: 10 | B10: corrieron durante muchísimos quilómetros | C10: vam córrer durant moltíssims quilòmetres | D10: greu oberta
A11: 11 | B11: de informaciones controvertidas | C11: d'informacions controvertidas
A12: 12 | B12: de la suficiente oferta de alimentos | C12: de la suficient oferta d'aliments
A13: 13 | B13: de una otra forma | C13: d'una altra forma
A14: 14 | B14: dejar un persona o cosa y no ocuparse más | C14: deixar una persona o cosa i no ocupar-se'n més | D14: agut tancada
A15: 15 | B15: dejarse dominarse por un vício | C15: deixar-se dominar per un vici
A16: 16 | B16: del célebre intérprete | C16: del cèlebre intèrpret | D16: greu oberta
A17: 17 | B17: del décimo aniversario de la nuestra publicación | C17: del desè aniversari de la nostra publicació
A18: 18 | B18: desde el punto de vista nutricional | C18: des del punt de vista nutricional
A19: 19 | B19: desesperado se abandonó al alcohol | C19: desesperat es va abandonar a l'alcohol
A20: 20 | B20: difícil | C20: difícil
A21: 21 | B21: el público aplaudió energicámente la actuación | C21: el públic aplaudí enèrgicament l'actuació | D21: greu oberta
A22: 22 | B22: el teléfono sonó toda la mañana | C22: el telèfono va sonar tot el matí | D22: greu oberta
A23: 23 | B23: en la actualidad | C23: en l'actualidad
A24: 24 | B24: en una ciencia desagradable | C24: en una ciència desagradable
A25: 25 | B25: es fácil de seguir | C25: és fàcil de seguir
A26: 26 | B26: esporádico no tiene ninguna importancia | C26: esporàdic no té cap importància | D26: agut tancada
A27: 27 | B27: esta sala tiene una acústica malísima | C27: aquesta sala té una acústica pèssima
A28: 28 | B28: estado de ánimo | C28: estat d'ànim
A29: 29 | B29: este coche lleno de polvo | C29: aquest cotxe ple de pols
A30: 30 | B30: este hecho en sí muy positivo | C30: aquest fet en si molt positiu
A31: 31 | B31: extraordinaria | C31: extraordinària
A32: 32 | B32: fácil | C32: fàcil
A33: 33 | B33: ha desencadenado una série | C33: ha desencadenat una sèrie | D33: greu oberta
A34: 34 | B34: había un rebaño de corderos | C34: hi havia un ramat de bens
A35: 35 | B35: hace mucho tiempo que está aquí aparcado | C35: fa molt de temps que és aquí aparcat
A36: 36 | B36: hay un auténtico | C36: hi ha un autèntic | D36: greu oberta
A37: 37 | B37: heredó | C37: heretà
A38: 38 | B38: interés por la dietética | C38: interès per la dietètica | D38: greu oberta
A39: 39 | B39: la alimentación correcta | C39: l'alimentació correcta
A40: 40 | B40: la dietètica puede convertirse | C40: la dietètica pot convertir-se | D40: greu oberta
A41: 41 | B41: la insistencia de aquella música me ofendía | C41: la insistència d'aquella música m'ofenia | D41: greu oberta
A42: 42 | B42: los ciervos | C42: els cérvols | D42: agut tancada
A43: 43 | B43: los vecinos han abandonado la casa porqué es muy vieja | C43: els veins han abandonat la casa perquè és molt vella | D43: greu oberta
A44: 44 | B44: mi vecino | C44: el meu veí
A45: 45 | B45: muchísimos | C45: moltíssims
A46: 46 | B46: música | C46: música
A47: 47 | B47: nada más dos nietos viven con él a Valencia | C47: només dos néts viuen amb ell a València | D47: greu oberta
A48: 48 | B48: nada más lenjos de la realidad | C48: res més lluny de la realitat
A49: 49 | B49: nadie | C49: ningú
A50: 50 | B50: no es la más ajustada | C50: no és la més ajustada
A51: 51 | B51: no se encuentra bien | C51: no es trobe bé | D51: agut tancada
A52: 52 | B52: nos explicó una anecdota | C52: ens va explicar una anècdota | D52: greu oberta
A53: 53 | B53: para almorzar siempre tomo un café bien espeso | C53: per esmorzar sempre pren un cafè ben espès | D53: greu oberta
A54: 54 | B54: pero ninguno no contestaba | C54: però ningú no contestava | D54: greu oberta
A55: 55 | B55: pero no causas molestias | C55: però no causen molèsties | D55: greu oberta
A56: 56 | B56: podíamos ir a premiar a última hora de la mañana | C56: podríem anar a premià a última hora del matí
A57: 57 | B57: podríamos | C57: podríem
A58: 58 | B58: por la mañana | C58: matí
A59: 59 | B59: porqué eran más buenos para hacer pan con tomate | C59: perquè eren més bons per fer pa amb tomàquet | D59: greu oberta
A60: 60 | B60: porque es muy vieja y puede derrumbarse caerse | C60: perquè és molt vella i pot ensorrar-se | D60: greu oberta
A61: 61 | B61: que creen que es muy difícil | C61: que creuen que és molt difícil | D61: agut tancada
A62: 62 | B62: que la mejor norma dietética | C62: que la millor norma dietètica | D62: greu oberta
A63: 63 | B63: quiero bajar el cuadro de la pared | C63: vull abaixar el quadre de la paret
A64: 64 | B64: quisiéramos | C64: voldríem
A65: 65 | B65: quisiéramos que venieran a la celebración | C65: voldríem que vinguéssiu a la celebració
A66: 66 | B66: recuerdo bien que entre los bienes que heredó | C66: recordo bé que entre els béns que heretà | D66: agut tancada
A67: =A66+1 -> 67 | B67: recuerdo que siempre comprábais tomates pequeños | C67: recordo que sempre compràveu tomàquets petits
A68: 68 | B68: salir puntual | C68: sortí puntual
A69: 69 | B69: se aplica a la persona | C69: s'aplica a la persona
A70: 70 | B70: seguir una alimentación correcta | C70: seguir una alimentació correcta
A71: 71 | B71: si se dispone | C71: si es disposa
A72: 72 | B72: simpático | C72: simpàtic
A73: 73 | B73: sino la que siendo | C73: sinó la que essent
A74: 74 | B74: sólo (nada más) dos nietos viven con él a Valéncia | C74: només dos néts viuen amb ell a València
A75: 75 | B75: su dueño lo ha abandonado | C75: el seu amo l'ha abandonat
A76: 76 | B76: tan extraordinaria que no lo creímos | C76: tan extraordinària que no el vàrem creure
A77: 77 | B77: tengo un vecino meloman que es muy simpático | C77: tinc un veí melòman que és molt simpàtic | D77: greu oberta
A78: 78 | B78: tiene la familia entre París y Venécia | C78: té la família entre París i Venècia | D78: greu oberta
A79: 79 | B79: tomate | C79: tomàquet
A80: 80 | B80: un desequilibrio dietético | C80: un desequilibri dietètic | D80: greu oberta
A81: 81 | B81: vecino | C81: veí
A82: 82 | B82: vivía en un abandono total en una casa vieja | C82: vivia en un abandó total en una casa vella
A83: 83 | B83: y ahora está en la cama | C83: i ara és al llit | D83: agut tancada
A84: 84 | B84: y si se evitan los excesos | C84: i si s'evitan els excessos
A85: 85 | B85: y un zúmo de melocotón | C85: i un suc de préssec | D85: agut tancada
A86: 86 | B86: ya que una dieta equilibrada | C86: ja que una dieta equilibrada
A87: 87 | B87: es fácil de seguir | C87: és fàcil de seguir
A88: 88 | B88: si se dispone de la suficiente | C88: si es disposa de la suficient
A89: 89 | B89: oferta de alimentos | C89: oferta d'aliments
A90: 90 | B90: y si se evitan los excesos | C90: i si s'eviten els excessos
A91: 91 | B91: un desequilibrio dietético | C91: un desequilibri dietètic | D91: greu oberta
A92: 92 | B92: esporádico no tiene ninguna importancia | C92: esporàdic no té cap importància
A93: 93 | B93: desde el punto de vista nutricional | C93: des del punt de vista nutricional
A94: 94 | B94: de otra forma | C94: d'una altra forma
A95: 95 | B95: la dietética puede convertirse | C95: la dietètica pot convertir-se | D95: greu oberta
A96: 96 | B96: en una ciencia desagradable | C96: en una ciència desagradable | D96: greu oberta
A97: 97 | B97: cabe recordar que la mejor norma dietética | C97: cal recordar que la millor norma dietètica | D97: greu oberta
A98: 98 | B98: no es la más ajustada | C98: no és la més ajustada
A99: 99 | B99: la Luisa tiene una vecina suiza | C99: la Lluïsa té una veïna suïssa | D99: agut tancada
A100: 100 | B100: las cuestiones que nos formulaba | C100: les qüestions que ens formulava
A101: =A100+1 -> 101 | B101: heran más ambiguas de lo que parecían | C101: eren més ambigües del que semblava
A102: 102 | B102: el pingüino vive en los paises fríos | C102: el pingüi viu als països freds
A103: 103 | B103: estos paraguas son verdaderas antiguedades | C103: aquests paraigües son veritables antigutats
A104: 104 | B104: los zapatos | C104: les sabates
A105: 105 | B105: tienen la lengueta rota | C105: tenen la llengüeta trencada
A106: 106 | B106: han recibido la influencia | C106: han rebut l'influència | D106: greu oberta
A107: 107 | B107: de las lenguas vecinas | C107: de les llengües veïnes
A108: 108 | B108: cocían las ensaimadas en un horno de leña (de cocer) | C108: coïan les ensaïmades en un forn de llenya (coure)
A109: 109 | B109: han traducido la vida | C109: han traduït la vida
A110: 110 | B110: a las lenguas | C110: a les llengües
A111: 111 | B111: el consumo de cocaina y de heroina | C111: el consum de cocaïna i d'heroïna
A112: 112 | B112: puede conducir a la delincuencia | C112: pot conduir a la delinqüència | D112: greu oberta
A113: 113 | B113: al lado de las ruinas | C113: al costat de les ruïnes
A114: 114 | B114: la reina lucía joyas antíguas | C114: la reina lluïa joies antigues
A115: 115 | B115: en la plaza hay once casas de pisos | C115: a la plaça hi ha onze cases de pisos
A116: 116 | B116: sábado haremos arroz a la cazuela | C116: dissabte farem arròs a la cassola
A117: 117 | B117: con guisantes y trozos de conejo | C117: amb pèsols i trossets de conill | D117: greu oberta
A118: 118 | B118: el Ignacio piensa pasar las vacaciones en Francia | C118: l'Ignasi pensa passar les vacances a França
A119: 119 | B119: son demasiado dulces | C119: són massa dolces | D119: agut tancada
A120: 120 | B120: la caza del ciervo fue difícil | C120: la caça del cérvol va ésser difícil | D120: agut tancada
A121: 121 | B121: en esta iglesia | C121: en aquesta església | D121: agut tancada
A122: 122 | B122: la misa solemne es a las doce | C122: la missa solemne és a les dotze | D122: agut tancada
A123: 123 | B123: cosió el disfraz de princesa | C123: va cosir la disfressa de princesa
A124: 124 | B124: antes de la fiesta | C124: abans de la festa
A125: 125 | B125: la cebolla es una hortaliza más bien dulce | C125: la ceba és una hortalissa més aviat dolça | D125: agut tancada
A126: 126 | B126: dejó el cigarrillo encendido en el cenicero | C126: va deixar el cigarret ences al cendrer
A127: 127 | B127: tenemos diezciséis tazas de barro | C127: tenim setze tasses de terrissa
A128: 128 | B128: la Mercé nos dio su dirección de Niça | C128: la Mercè ens va donar la seva adreça de Niça | D128: greu oberta
A129: 129 | B129: el dulzor de las cerezas me encantan | C129: la dolçor de les cireres m'encantan
A130: =A129+1 -> 130 | B130: felicitastes a la Cecilia el día de su santo | C130: vas felicitar la Cecília el dia del seu sant
A131: 131 | B131: si tuvieras fiesta hasta el día diezcisiéte | C131: si tinguessis festa fins al dia disset
A132: 132 | B132: podrías venir a Pollensa | C132: podries venir a Pollença
A133: 133 | B133: pasado mañana guardaré las camisas en el armario | C133: demà passat desaré les camises a l'armari | D133: agut tancada
A134: 134 | B134: los cuerpos extraños | C134: els cossos estranys
A135: 135 | B135: muchas veces | C135: sovint
A136: 136 | B136: a menudo, cuando se produce una herida | C136: sovint quan es produeix una ferida
A137: 137 | B137: se introducen pequeños elementos | C137: s'hi introdueixen petits elements
A138: 138 | B138: han sido los mismos causantes de la herida | C138: han estat els meteixos causants de la ferida
A139: 139 | B139: hay la posibilidad de que si se introduce | C139: hi ha la possibilitat que s`hi introdueixi
A140: 140 | B140: sorra | C140: conjunt de partícules de pedra
A141: 141 | B141: por ejemplo | C141: per exemple
A142: 142 | B142: que acostumbra a salir fácilmente | C142: que acostuma a sortir fàcilment
A143: 143 | B143: cuando se lava la herida | C143: quan es renta la ferida
A144: 144 | B144: igualmente se pueden introducir | C144: igualment s'hi poden introduir
A145: 145 | B145: astillas de madera | C145: estelles de fusta
A146: 146 | B146: trozos de metal | C146: trossos de metall
A147: 147 | B147: o cualquier otra cosa | C147: o qualsevol altra cosa
A148: 148 | B148: también son relativamente frecuentes | C148: també són relativament freqüents
A149: 149 | B149: las heridas penetrantes | C149: les ferides penetrants
A150: 150 | B150: producidas por un anzuelo | C150: produïdes per un ham
A151: 151 | B151: que queda clavado | C151: que queda clavad
A152: 152 | B152: todos estos elementos son | C152: tots aquests elements són
A153: 153 | B153: los que nombramos cuerpos extraños | C153: el que anomenem cossos estranys
A154: 154 | B154: digamos elementos extraños al organismo | C154: és a dir elements aliens a l'organisme
A155: 155 | B155: no queremos saber nada | C155: no en volem saber res
A156: 156 | B156: desconocido | C156: aliè/ena | D156: greu oberta
A157: 157 | B157: todo esto es desconocido | C157: tot això ens és aliè | D157: greu oberta
A158: 158 | B158: que penetran más o menos profundamente | C158: que hi penetren més o menys profundament | D158: agut tancada
A159: 159 | B159: no tenemos que intentar sacar | C159: no hem d'intentar treure
A160: 160 | B160: los cuerpos extraños | C160: els cossos estranys
A161: 161 | B161: clavados en las heridas | C161: clavats a les ferides
A162: 162 | B162: si no salen cuando se lava la herida | C162: si no surten quan es renta la lesió ferida | D162: agut tancada
A163: 163 | B163: es mejor taparla y acudir a un centro médico | C163: és millor tapar-la i adreçar-se a un centre mèdic | D163: greu oberta
A164: 164 | B164: con tal que los extraigan en las condiciones adecuadas | C164: per tal que els extreguin en les condicions adequades | D164: greu oberta
A165: 165 | B165: la experiencia ha demostrado que | C165: l'experiència ha demostrat que
A166: 166 | B166: parece fácil | C166: sembla fàcil
A167: 167 | B167: a menudo lo único que se consigue | C167: sovint l'únic que s'aconsegueix
A168: 168 | B168: a menudo | C168: sovint
A169: 169 | B169: muchas veces en el invierno | C169: moltes vegades a l'hivern
A170: 170 | B170: es trocear el objeto | C170: és trossejar l'objecte
A171: 171 | B171: en la herida | C171: en la ferida
A172: 172 | B172: los tenderos se quejan | C172: els botiguers es queixen
A173: 173 | B173: que el primer mes de rebajas | C173: que el primer mes de rebaixes
A174: 174 | B174: no mejoran las ventas | C174: no millora les vendes
A175: 175 | B175: el primer mes de rebajas de verano | C175: el primer mes de rebaixes d'estiu
A176: 176 | B176: no ha mejorado las ventas | C176: no ha millorat gens les vendes
A177: 177 | B177: aseguran que ya se comienza a notar | C177: asseguren que ja es comença a notar
A178: 178 | B178: una cierta reanimación en la demanda de productos | C178: una certa reanimació en la demanda de productes
A179: 179 | B179: más de la mitad de los comerciantes | C179: més de la mitad dels comerciants
A180: 180 | B180: se queja | C180: es queixa
A181: 181 | B181: que todavía queda muy lenjos | C181: que encara queda molt lluny
A182: 182 | B182: la reactivación económica tan esperada | C182: la reactivació econòmica tan esperada | D182: greu oberta
A183: 183 | B183: y que los descuentos | C183: i que els descomtes
A184: 184 | B184: importantes | C184: importans
A185: 185 | B185: no ha sido un incentivo suficiente | C185: no han estat un incentiu suficient
A186: 186 | B186: para qué la gante se decidiera a comprar | C186: perquè la gent es decidís a comprar
A187: 187 | B187: las rebajas se alargaran hasta a finales de agosto | C187: les rebaixes s'allargaran fins a finals d'agost
A188: 188 | B188: o puede ser hasta | C188: o potser fins
A189: 189 | B189: a la primera quincena de septiembre | C189: a la primera quinzena de setembre
A190: 190 | B190: los artículos que han experimentado | C190: els articles que han experimentat
A191: 191 | B191: una mejor salida | C191: una major sortida
A192: 192 | B192: son los más baratos | C192: són els més barats
A193: 193 | B193: sobre todo la ropa de temporada | C193: sobretot la roba de temporada
A194: =A193+1 -> 194 | B194: como ahora | C194: com ara
A195: 195 | B195: camisetas y vestidos | C195: samarretes i vestits
A196: 196 | B196: el despacho de Jesús es muy feo | C196: el despatx d'en Jesús és molt lleig | D196: agut tancada
A197: 197 | B197: llevaba la caja fuerte dentro del coche | C197: portava la caixa forta dins del cotxe
A198: 198 | B198: me parece que Jerónimo es tonto bobo | C198: em sembla que en Jeroni és boig
A199: 199 | B199: traían un buen fajo de leña para la chimenea | C199: duien un bon feix de llenya per a la xemeneia
A200: 200 | B200: aquel chico era listo | C200: aquell xicot era eixerit
... 358 more rows

Sheet datos preguntas (hidden)
A1: 1 | B1: abandonar | C1: abandonar
A2: =A1+1 -> 2 | B2: ahora | C2: ara
A3: =A2+1 -> 3 | B3: más | C3: més
A4: 4 | B4: anteayer | C4: abans-d'ahir
A5: 5 | B5: aplaudir | C5: aplaudí
A6: 6 | B6: la pared | C6: la paret
A7: 7 | B7: científicamente | C7: científicament
A8: 8 | B8: se cumple | C8: es compleix
A9: 9 | B9: que hay personas | C9: que hi ha persones
A10: 10 | B10: de informaciones controvertidas | C10: d'informacions controvertidas
A11: 11 | B11: de la suficiente oferta de alimentos | C11: de la suficient oferta d'aliments
A12: 12 | B12: de una otra forma | C12: d'una altra forma
A13: 13 | B13: dejar un persona o cosa | C13: deixar una persona o cosa
A14: 14 | B14: y no ocuparse más | C14: i no ocupar-se'n més
A15: 15 | B15: dejarse dominarse por un vício | C15: deixar-se dominar per un vici
A16: 16 | B16: del célebre intérprete | C16: del cèlebre intèrpret
A17: 17 | B17: del décimo aniversario | C17: del desè aniversari
A18: 18 | B18: de la nuestra publicación | C18: de la nostra publicació
A19: 19 | B19: desde el punto de vista nutricional | C19: des del punt de vista nutricional
A20: 20 | B20: desesperado | C20: desesperat
A21: 21 | B21: desesperado se abandonó al alcohol | C21: desesperat es va abandonar a l'alcohol
A22: 22 | B22: difícil | C22: difícil
A23: 23 | B23: el público | C23: el públic
A24: 24 | B24: aplaudió | C24: aplaudí
A25: 25 | B25: energicámente | C25: enèrgicament
A26: 26 | B26: la actuación | C26: l'actuació
A27: 27 | B27: el teléfono | C27: el telèfono
A28: 28 | B28: sonó toda la mañana | C28: va sonar tot el matí
A29: 29 | B29: en la actualidad | C29: en l'actualidad
A30: 30 | B30: en una ciencia | C30: en una ciència
A31: 31 | B31: desagradable | C31: desagradable
A32: 32 | B32: es fácil de seguir | C32: és fàcil de seguir
A33: 33 | B33: esporádico | C33: esporàdic
A34: 34 | B34: no tiene ninguna importancia | C34: no té cap importància
A35: 35 | B35: esta sala | C35: aquesta sala
A36: 36 | B36: tiene una acústica malísima | C36: té una acústica pèssima
A37: 37 | B37: estado de ánimo | C37: estat d'ànim
A38: 38 | B38: este coche lleno de polvo | C38: aquest cotxe ple de pols
A39: 39 | B39: este hecho en sí muy positivo | C39: aquest fet en si molt positiu
A40: 40 | B40: extraordinaria | C40: extraordinària
A41: 41 | B41: fácil | C41: fàcil
A42: 42 | B42: ha desencadenado una série | C42: ha desencadenat una sèrie
A43: 43 | B43: había un rebaño de corderos | C43: hi havia un ramat de bens
A44: 44 | B44: hace mucho tiempo | C44: fa molt de temps
A45: 45 | B45: que está aquí aparcado | C45: que és aquí aparcat
A46: 46 | B46: hay un auténtico | C46: hi ha un autèntic
A47: 47 | B47: heredó | C47: heretà
A48: 48 | B48: interés por la dietética | C48: interès per la dietètica
A49: 49 | B49: la alimentación correcta | C49: l'alimentació correcta
A50: 50 | B50: la dietética | C50: la dietètica
A51: 51 | B51: puede convertirse | C51: pot convertir-se
A52: 52 | B52: la insistencia | C52: la insistència
A53: 53 | B53: de aquella música | C53: d'aquella música
A54: 54 | B54: me ofendía | C54: m'ofenia
A55: 55 | B55: los ciervos | C55: els cérvols
A56: 56 | B56: los vecinos | C56: els veins
A57: 57 | B57: han abandonado la casa | C57: han abandonat la casa
A58: 58 | B58: porqué es muy vieja | C58: perquè és molt vella
A59: 59 | B59: mi vecino | C59: el meu veí
A60: 60 | B60: muchísimos | C60: moltíssims
A61: 61 | B61: música | C61: música
A62: 62 | B62: nada más dos nietos | C62: només dos néts
A63: 63 | B63: viven con él a Valencia | C63: viuen amb ell a València
A64: 64 | B64: nada más lenjos de la realidad | C64: res més lluny de la realitat
A65: 65 | B65: nadie | C65: ningú
A66: 66 | B66: no es la más ajustada | C66: no és la més ajustada
A67: =A66+1 -> 67 | B67: no se encuentra bien | C67: no es trobe bé
A68: 68 | B68: nos explicó | C68: ens va explicar
A69: 69 | B69: una anecdota | C69: una anècdota
A70: 70 | B70: para almorzar | C70: per esmorzar
A71: 71 | B71: siempre tomo un café | C71: sempre pren un cafè
A72: 72 | B72: bien espeso | C72: ben espès
A73: 73 | B73: pero ninguno no contestaba | C73: però ningú no contestava
A74: 74 | B74: pero no causas molestias | C74: però no causen molèsties
A75: 75 | B75: podíamos ir a premiar | C75: podríem anar a premià
A76: 76 | B76: a última hora de la mañana | C76: a última hora del matí
A77: 77 | B77: podríamos | C77: podríem
A78: 78 | B78: porqué eran más buenos | C78: perquè eren més bons
A79: 79 | B79: para hacer pan con tomate | C79: per fer pa amb tomàquet
A80: 80 | B80: porque es muy vieja | C80: perquè és molt vella
A81: 81 | B81: y puede derrumbarse (caerse) | C81: i pot ensorrar-se
A82: 82 | B82: que creen | C82: que creuen
A83: 83 | B83: que es muy difícil | C83: que és molt difícil
A84: 84 | B84: que la mejor norma dietética | C84: que la millor norma dietètica
A85: 85 | B85: quiero bajar | C85: vull abaixar
A86: 86 | B86: el cuadro | C86: el quadre
A87: 87 | B87: de la pared | C87: de la paret
A88: 88 | B88: quisiéramos | C88: voldríem
A89: 89 | B89: que venieran | C89: que vinguéssiu
A90: 90 | B90: a la celebración | C90: a la celebració
A91: 91 | B91: recuerdo bien | C91: recordo bé
A92: 92 | B92: que entre los bienes | C92: que entre els béns
A93: 93 | B93: que heredó | C93: que heretà
A94: 94 | B94: recuerdo que siempre | C94: recordo que sempre
A95: 95 | B95: comprábais | C95: compràveu
A96: 96 | B96: tomates pequeños | C96: tomàquets petits
A97: 97 | B97: salir puntual | C97: sortí puntual
A98: 98 | B98: se aplica a la persona | C98: s'aplica a la persona
A99: 99 | B99: seguir una alimentación correcta | C99: seguir una alimentació correcta
A100: 100 | B100: si se dispone | C100: si es disposa
A101: 101 | B101: simpático | C101: simpàtic
A102: 102 | B102: sólo dos nietos | C102: només dos néts
A103: 103 | B103: viven | C103: viuen
A104: 104 | B104: con él a Valéncia | C104: amb ell a València
A105: 105 | B105: su dueño | C105: el seu amo
A106: 106 | B106: lo ha abandonado | C106: l'ha abandonat
A107: 107 | B107: tan extraordinaria | C107: tan extraordinària
A108: 108 | B108: tengo un vecino | C108: tinc un veí
A109: 109 | B109: que es muy simpático | C109: que és molt simpàtic
A110: 110 | B110: tiene la familia | C110: té la família
A111: 111 | B111: tomate | C111: tomàquet
A112: 112 | B112: un desequilibrio dietético | C112: un desequilibri dietètic
A113: 113 | B113: vecino | C113: veí
A114: 114 | B114: vivía en un abandono | C114: vivia en un abandó
A115: 115 | B115: en una casa vieja | C115: en una casa vella
A116: 116 | B116: y ahora está en la cama | C116: i ara és al llit
A117: 117 | B117: y si se evitan los excesos | C117: i si s'evitan els excessos
A118: 118 | B118: y un zúmo | C118: i un suc
A119: 119 | B119: de melocotón | C119: de préssec
A120: 120 | B120: ya que una dieta equilibrada | C120: ja que una dieta equilibrada
A121: 121 | B121: es fácil de seguir | C121: és fàcil de seguir
A122: 122 | B122: si se dispone | C122: si es disposa
A123: 123 | B123: oferta de alimentos | C123: oferta d'aliments
A124: 124 | B124: los excesos | C124: els excessos
A125: 125 | B125: la Luisa | C125: la Lluïsa
A126: 126 | B126: tiene una vecina suiza | C126: té una veïna suïssa
A127: 127 | B127: las cuestiones | C127: les qüestions
A128: 128 | B128: que nos formulaba | C128: que ens formulava
A129: 129 | B129: heran más ambiguas | C129: eren més ambigües
A130: 130 | B130: de lo que parecían | C130: del que semblava
A131: =A130+1 -> 131 | B131: el pingüino vive | C131: el pingüi viu
A132: 132 | B132: en los paises fríos | C132: als països freds
A133: 133 | B133: estos paraguas | C133: aquests paraigües
A134: 134 | B134: son verdaderas | C134: son veritables
A135: 135 | B135: antiguedades | C135: antigutats
A136: 136 | B136: los zapatos | C136: les sabates
A137: 137 | B137: tienen | C137: tenen
A138: 138 | B138: la lengueta rota | C138: la llengüeta trencada
A139: 139 | B139: han recibido | C139: han rebut
A140: 140 | B140: la influencia | C140: l' influència
A141: 141 | B141: las ensaimadas | C141: les ensaïmades
A142: 142 | B142: en un horno | C142: en un forn
A143: 143 | B143: de leña | C143: de llenya
A144: 144 | B144: han traducido la vida | C144: han traduït la vida
A145: 145 | B145: a las lenguas | C145: a les llengües
A146: 146 | B146: el consumo de cocaina | C146: el consum de cocaïna
A147: 147 | B147: y de heroina | C147: i d'heroïna
A148: 148 | B148: puede conducir | C148: pot conduir
A149: 149 | B149: a la delincuencia | C149: a la delinqüència
A150: 150 | B150: al lado | C150: al costat
A151: 151 | B151: de las ruinas | C151: de les ruïnes
A152: 152 | B152: la reina lucía | C152: la reina lluïa
A153: 153 | B153: lucía joyas | C153: lluïa joies
A154: 154 | B154: antíguas | C154: antigues
A155: 155 | B155: en la plaza | C155: a la plaça
A156: 156 | B156: hay once | C156: hi ha onze
A157: 157 | B157: casas de pisos | C157: cases de pisos
A158: 158 | B158: sábado | C158: dissabte
A159: 159 | B159: haremos arroz | C159: farem arròs
A160: 160 | B160: a la cazuela | C160: a la cassola
A161: 161 | B161: con guisantes | C161: amb pèsols
A162: 162 | B162: y trozos de conejo | C162: i trossets de conill
A163: 163 | B163: abrigar | C163: abrigar
A164: 164 | B164: el Ignacio | C164: l'Ignasi
A165: 165 | B165: piensa pasar | C165: pensa passar
A166: 166 | B166: las vacaciones en Francia | C166: les vacances a França
A167: 167 | B167: son demasiado dulces | C167: són massa dolces
A168: 168 | B168: la caza del ciervo | C168: la caça del cérvol
A169: 169 | B169: fue difícil | C169: va ésser difícil
A170: 170 | B170: en esta iglesia | C170: en aquesta església
A171: 171 | B171: la misa solemne | C171: la missa solemne
A172: 172 | B172: es a las doce | C172: és a les dotze
A173: 173 | B173: cosió | C173: va cosir
A174: 174 | B174: el disfraz de princesa | C174: la disfressa de princesa
A175: 175 | B175: antes de la fiesta | C175: abans de la festa
A176: 176 | B176: dejó el cigarrillo | C176: va deixar el cigarret
A177: 177 | B177: encendido | C177: ences
A178: 178 | B178: en el cenicero | C178: al cendrer
A179: 179 | B179: tenemos diezciséis | C179: tenim setze
A180: 180 | B180: tazas de barro | C180: tasses de terrissa
A181: 181 | B181: la Mercé nos dio | C181: la Mercè ens va donar
A182: 182 | B182: su dirección de Niça | C182: la seva adreça de Niça
A183: 183 | B183: el dulzor de las cerezas | C183: la dolçor de les cireres
A184: 184 | B184: me encantan | C184: m'encantan
A185: 185 | B185: felicitastes a la Cecilia | C185: vas felicitar la Cecília
A186: 186 | B186: el día de su santo | C186: el dia del seu sant
A187: 187 | B187: si tuvieras fiesta | C187: si tinguessis festa
A188: 188 | B188: hasta el día diezcisiéte | C188: fins al dia disset
A189: 189 | B189: podrías venir a Pollensa | C189: podries venir a Pollença
A190: 190 | B190: pasado mañana | C190: demà passat (passat demà)
A191: 191 | B191: pondré las camisas en el armario | C191: desaré les camises a l'armari
A192: 192 | B192: los cuerpos | C192: els cossos
A193: 193 | B193: los cuerpos extraños | C193: els cossos estranys
A194: 194 | B194: muchas veces | C194: sovint
A195: =A194+1 -> 195 | B195: cuando se produce | C195: quan es produeix
A196: 196 | B196: una herida | C196: una ferida
A197: 197 | B197: se introducen | C197: s'hi introdueixen
A198: 198 | B198: pequeños elementos | C198: petits elements
A199: 199 | B199: han sido | C199: han estad
A200: 200 | B200: los mismos | C200: els meteixos
... 747 more rows

Sheet català-caste
D1: habilitar este contenido
B2: =VLOOKUP(L7,'datos preguntas'!A1:C1000,2,FALSE) -> de septiembre
L6: =RANDBETWEEN(1,866) -> 822
A7: celda escritura | L7: 295
A9: volver | C9: =VLOOKUP(L7,'datos preguntas'!A1:C1000,3,FALSE) -> de setembre
C12: respuesta

Sheet caste-català
D1: habilitar este contenido
B2: =VLOOKUP(L7,'datos preguntas'!A1:C1000,3,FALSE) -> l'actuació
L6: =RANDBETWEEN(1,866) -> 484
L7: 26
A8: celda escritura
C9: =VLOOKUP(L7,'datos preguntas'!A1:C1000,2,FALSE) -> la actuación
A10: volver
C12: respuesta

Sheet ESTUDIO
D1: habilitar este contenido | J1: junio del 2010 por joannostro
C5: =B2 -> 0
A9: =VLOOKUP(G14,DATOS!A1:D999,4,FALSE) -> 0 | C9: =VLOOKUP(G14,DATOS!A1:D2000,3,FALSE) -> fregir
C11: =VLOOKUP(G14,DATOS!A1:D2002,2,FALSE) -> freír
G13: =RANDBETWEEN(1,550) -> 533
G14: 204
A17: catalán - castellano
A18: castellano - catalán

Sheet EXEMPLES
A1: à greu | B1: è greu | C1: é agut | D1: í agut | E1: ò greu | F1: ó agut | G1: agut | J1: ( ' ) | K1: ( - ) | L1: ss
A2: à | B2: è (oberta ) | C2: é (tancada) | D2: í | E2: ò (oberta ) | F2: ó ( tancada) | G2: ú | H2: Ç (trancada ) | I2: ü | J2: d'aliments | K2: ocupar-se'n | L2: massa | M2: l (germinada) | N2: n palatal | O2: a | P2: e
A3: tomàquet | B3: dietètic | C3: té bebida | D3: moltíssims | E3: això | F3: córrer | G3: ningú | H3: adreça | I3: qüestions | J3: l'alimentació | K3: posar-los | L3: excessos | O3: aquesta | P3: entre
A4: fàcil | B4: desè | C4: més | D4: científicament | E4: arròs | F4: publicació | G4: ningú | H4: França | I4: Luïsa | J4: l'actuació | K4: tapar-la | L4: assegurem | O4: veia | P4: perquè
A5: heretà | B5: molèsties | C5: préssec melocotón | D5: aquí | E5: arròs | F5: l'actuació | G5: música | H5: dolça | I5: suïssa | J5: d'ànim | K5: ensorrar-se | L5: essent | O5: llimona | P5: cèlebre
A6: compràveu | B6: intèrpret | C6: cérvols | D6: veí | E6: ginecòleg | F6: celebració | G6: l'únic | H6: Niça | I6: ambigües | J6: m'ofenia | K6: col-loquin | L6: suïssa | O6: temperatura | P6: cotxe
A7: importància | B7: ciència | C7: només | D7: matí | E7: melòman | F7: abandó | G7: música | H7: caça | I7: veïna | J7: d'heroïna | K7: adreçar-se | L7: moltíssims | O7: pedra | P7: metge
A8: demà | B8: cèlebre | C8: bé bien | D8: aplaudí | E8: però | F8: són | G8: públic | H8: comença | I8: cocaïna | J8: l'alcohol | K8: deixar-se | L8: cassola | O8: disfressa
A9: simpàtic | B9: anècdota | C9: és | D9: difícil | E9: quilòmetres | F9: abandó | G9: acústica | H9: plaça | I9: conseqüència | J9: d'una | K9: convertir-se | L9: dissabte | O9: posa
A10: esporàdic | B10: enèrgicament | C10: béns (bienes) | D10: vinguéssiu | E10: això | F10: lesió | G10: Llúcia | H10: Pollença | I10: llengüeta | J10: l'ha | K10: recordeu-vos | L10: hortalissa | O10: família
A11: fàcilment | B11: interès | C11: cérvol | D11: família | F11: reactivació | H11: adreçar-se | I11: veïnes | J11: d'aliments | K11: fer-la | L11: terrissa | O11: Venècia
A12: ànim | B12: pèsima | C12: desaré | D12: Cecília | F12: reanimació | H12: dolçor | I12: d'heroïna | J12: s'hi | K12: tenir-ho | L12: passat | O12: ferida
A13: fàcil | B13: insistència | C13: després | D13: jeroglífic | F13: alimentació | H13: avenç | I13: lluïa | J13: l'únic | K13: ennegrir-se | L13: trossos | O13: festa
A14: esporàdic | B14: espès | C14: església | D14: difícil | F14: sinó | H14: començat | I14: traduït | J14: l'armari | K14: tirar-hi | L14: disset | O14: dia
A15: vàrem | B15: dietètica | C15: ésser | D15: París | F15: són | H15: llençant | I15: coïan | J15: m'encantan | K15: col-lecció | L15: tinguessis | O15: buscava
A16: compràveu | B16: autèntic | C16: néts | D16: difícil | F16: separació | H16: calçat | I16: països | J16: s'aplica | K16: il-lusió | L16: missa | O16: encara
A17: extraordinària | B17: cafè | C17: només | D17: voldríem | F17: l'alimentació | I17: paraigües | J17: l'alimentació | K17: il-luminació | L17: disfressa | O17: cosa
A18: d'ànim | B18: molèsties | C18: també | D18: sortí | F18: l'elaboració | I18: llengües | J18: s'evitan | K18: col-locat | L18: tasses | O18: correcta
A19: vàlida | B19: perquè | C19: té (tener) | D19: partícules | F19: recomanació | I19: delinqüència | J19: l'organisme | K19: sol-licituds | L19: cossos | O19: s'aplica
A20: àcid | B20: conseqüència | C20: procés | D20: decidís | F20: sinó | I20: ruïnes | J20: l'experiència | K20: col-laboradors | L20: possibilitat | O20: portava
A21: elàstics | B21: influència | C21: després | D21: podríem | F21: col-lecció | I21: pingüi | J21: d'aquella | K21: pel-lícula | L21: ésser | O21: s'eliminan
A22: s'està | B22: ciència | C22: també | D22: així | F22: il-lusió | I22: freqüents | J22: d'en | K22: novel-les | L22: grosses | O22: cal-ligrafia
A23: ancià | B23: València | C23: ésser | D23: centímetres | F23: muntanyós | I23: produïdes | J23: d'agost | K23: intel-ligent | L23: assolellats
B24: sèrie | C24: aniré | D24: centímetres | F24: reunió | I24: llengüeta | J24: l'objecte | K24: abstenir-se | L24: cossos
B25: telèfono | C25: beuré | D25: família | F25: l'absorció | I25: veïnes | J25: s'aconsegueix | K25: privar-se | L25: trossejar
B26: Venècia | D26: jardí | F26: abstenció | I26: coïan | J26: l'hivern | K26: instal-lar-se | L26: massa
B27: delinqüència | D27: mínima | F27: raó | I27: ensaïmades | J27: d'estiu | K27: accidentar-se | L27: participessin
B28: diferència | D28: física | F28: actuació | I28: traduït | J28: s'aplica | K28: escalfar-nos | L28: ésser
B29: fèrtils | D29: Lluís | F29: excitació | I29: cocaïna | J29: l'hivern | K29: cal-ligrafia | L29: essencial
B30: l'experiència | D30: pel-lícula | F30: camió | I30: d'heroïna | J30: l'únic
B31: Mercè | D31: policíaques | F31: aixó | J31: l'únic
B32: perquè | F32: acció | J32: l'aixeta
B33: pèsols | J33: l'Angels
B34: diferència | J34: m'ha
B35: tècnica | J35: s'han
B36: perquè | J36: s'ha
B37: cafè | J37: d'avui
B38: acadèmia | J38: d'aquelles
J39: l'all
J40: s'enfarinen
J41: l'estiu
J42: l'objectiu
J43: l'alvocat
J44: s'oxida
J45: l'ombra
J46: d'aquest
J47: s'està
J48: l'arxiu
J49: d'heroïna
J50: l'any
J51: l'accident

Sheet l'accent
A3: El català té cinc vocals a e i o u D'aquestes vocals, la (e) i la (o) tenen dues pronunciacions: oberte i tancada
A4: És oberta la e de pera, selva, gerra, bè (el petit de l'ovella) És tancada la e de seva, pell, cauré, bé (adverbi)
A5: És oberta la o de gol, col, sòl, asixò És tancada la o de por, bot, caixó, saló
A7: Accents agut ( ´ ) i greu ( ` ) Quan cal acentuar-les gràficament
A8: La (a) duen sempre l'accent greu ( ` ) capità, hàbil, ánima
A9: La ( i ) i la ( u ) duen sempre l'accente agut ( ´ ) camí, índex, útil, comú
A10: La ( e ) i la ( o ) duen l'accent greu o l'agut segons que siguin obertes o tancades
A12: En terminacions verbals:
A13: La (e), sempre l'accent agut ( ´ ): donaré, seré, digué, prenguéren, visquéren, sabés, coneguésem, veiéssim.
F18: volver
